Cogmind - Beta 15 @@@ ROGUE MODE // 2025.08.12 @ 12:52:11 Player: shapeshifter Result: Destroyed by L-41 Fighter with Axe Performance ------------- Evolutions (4) 2000 Regions Visited (6) 1200 Robots Destroyed (67) 335 Value Destroyed (2015) 2015 Prototype IDs (5) 100 Alien Tech Used (0) 0 Bonus (1524) 1524 TOTAL SCORE: 7174 Bonus ------- High Alert Combat Kills 278 Follower Combat Kills 683 Met Imprinter 300 Was Imprinted 300 Friendly Fire -37 Cogmind --------- Core Integrity 0/850 Matter 185/300 Energy 21/100 System Corruption 13% Temperature Cool (1) Movement Core (50) Location -6/Factory Parts ------- > --- POWER (2) -------- (None) > --- PROPULSION (5) --- (None) > --- UTILITY (6) ------ (None) > --- WEAPON (2) ------- (None) > --- INVENTORY (5) ---- Cargo Storage Unit Gravity Neutralizer Enhanced Optical Array Improved Targeting Computer Peak State ------------ > --- POWER ------------ Heavy Ion Engine Angular Momentum Engine > --- PROPULSION ------- Improved Treads Improved Treads Armored Treads Medium Treads Medium Treads > --- UTILITY ---------- Improved Cooling System Huge Storage Unit Makeshift Terrain Scan Processor Makeshift Salvage Targeting Computer Experimental Propulsion Shielding Makeshift Light Armor Plating > --- WEAPON ----------- Heavy Laser Advanced Beam Cannon > --- INVENTORY -------- Light Angular Momentum Engine Large Storage Unit Cargo Storage Unit Gravity Neutralizer Enhanced Optical Array Experimental Sensor Array Improved Terrain Scanner Advanced Terrain Scanner Reaction Control System Hacking Drone Bay Plasma Rifle Advanced Beam Cannon Grenade Launcher CR-A16's Pointy Stick [Rating: 59] Favorites ----------- Power Heavy Ion Engine Engine Heavy Ion Engine Propulsion Improved Treads Treads Improved Treads Leg Carbon-fiber Leg Wheel Armored Wheel Utility Large Storage Unit Device Heat Sink Storage Large Storage Unit Processor Makeshift Terrain Scan Processor Hackware Hacking Suite Protection Medium Armor Plating Weapon Advanced Beam Cannon Energy Gun Heavy Laser Energy Cannon Advanced Beam Cannon Ballistic Gun Assault Rifle Launcher Grenade Launcher Slashing Weapon Greatsword Piercing Weapon CR-A16's Pointy Stick Build | -11 -10 -9 -9 -7 -6 -6 ------- Run | Yrd Mat Mat Min Zio Pro Fac Slots Evolved 8 | . . 2 . . . 6 Power 1 | . . . . . . 1 Propulsion 3 | . . . . . . 3 Utility 4 | . . 2 . . . 2 Weapon . | . . . . . . . Parts Attached 58 | 7 . 16 1 6 7 21 Power 6 | 1 . 2 . 1 . 2 Engine 6 | 1 . 2 . 1 . 2 Core . | . . . . . . . Reactor . | . . . . . . . Propulsion 19 | 2 . 2 1 2 3 9 Treads 15 | 2 . 2 1 . 3 7 Leg 2 | . . . . . . 2 Wheel 2 | . . . . 2 . . Hover . | . . . . . . . Flight . | . . . . . . . Utility 18 | 2 . 7 . 3 2 4 Device 6 | 1 . 2 . 1 1 1 Storage 4 | 1 . 2 . . . 1 Processor 2 | . . . . 1 . 1 Hackware 1 | . . 1 . . . . Protection 5 | . . 2 . 1 1 1 Artifact . | . . . . . . . Weapon 15 | 2 . 5 . . 2 6 Energy Gun 3 | . . 1 . . 1 1 Energy Cannon 7 | . . 3 . . 1 3 Ballistic Gun 2 | 2 . . . . . . Ballistic Cannon . | . . . . . . . Launcher 1 | . . 1 . . . . Special Weapon . | . . . . . . . Impact Weapon . | . . . . . . . Slashing Weapon 1 | . . . . . . 1 Piercing Weapon 1 | . . . . . . 1 Special Melee Weapon . | . . . . . . . Unidentified Prototypes 5 | . . 3 . 1 . 1 Parts Lost 29 | . . 3 . . 3 23 Power 3 | . . . . . . 3 Propulsion 11 | . . . . . 2 9 Utility 8 | . . 1 . . 1 6 Weapon 7 | . . 2 . . . 5 Highest Loss Streak 12 | . . 1 . . 2 12 To Critical Strikes 1 | . . . . . . 1 Average Backups 13 | 5 7 12 15 14 13 13 Power . | . 1 . 1 . . . Propulsion 4 | 3 4 5 5 4 4 . Utility 5 | . 1 3 4 5 4 8 Weapon 3 | . 1 3 4 4 3 3 Tool/Special . | . . . . . . . Unused Backups 17 | . . 4 . 4 . 9 Power 1 | . . 1 . . . . Propulsion 3 | . . 3 . . . . Utility 11 | . . . . 2 . 9 Weapon 2 | . . . . 2 . . Tool/Special . | . . . . . . . Average Slot Usage (%) 92 | . 100 92 100 100 94 79 Engine 10 | . 14 11 11 11 11 8 Treads 13 | . 28 22 22 4 5 21 Wheel 7 | . . . . 17 11 . Device 11 | . 14 12 11 11 11 11 Storage 10 | . 14 12 11 11 11 6 Processor 4 | . . . . . 11 11 Hackware 4 | . . 2 11 10 . . Protection 8 | . . 9 11 11 11 5 Energy Gun 1 | . . 4 . . . 3 Energy Cannon 15 | . . 12 22 22 19 8 Ballistic Gun 1 | . 28 4 . . . . Peak Build Rating 59 | 7 8 22 22 31 34 59 Average Rating 27 | 5 7 16 21 23 27 46 On Entrance 17 | . 7 8 22 22 27 34 Naked Turns . | . . . . . . . Heaviest Build 116 | 14 14 41 40 44 44 116 Greatest Support 122 | 40 40 46 46 46 51 122 Greatest Overweight (x) 10 | 1 . . . 1 3 10 Average Overweight (x) . | . . . . . 1 . Largest Inventory Capacity 25 | 8 8 15 15 15 15 25 Average Capacity 16 | 7 8 14 15 15 15 21 Most Carried 22 | 8 8 15 15 15 15 22 Average Carried 13 | 5 7 12 14 14 14 14 Final Capacity 15 | 8 8 15 15 15 15 5 Final Carried 15 | 7 8 15 15 14 15 5 Class Distribution -------------------- 74% | Mutant 18% | Derelict-Mutant 6% | Scavenger-Mutant Dominant Class ---------------- Mutant | -10/Materials Mutant | -9/Materials Mutant | -9/Mines Mutant | -7/Zion Mutant | -6/Proximity Caves Derelict-Mutant | -6/Factory Resources | -11 -10 -9 -9 -7 -6 -6 ----------- Run | Yrd Mat Mat Min Zio Pro Fac Matter Collected 997 | 235 67 297 . 70 119 209 Remotely . | . . . . . . . Salvage Created 2632 | 42 67 1058 59 . 212 1194 Parts 131 | 8 3 65 5 . 11 39 Haulers Intercepted 3 | . . 3 . . . . Recyclers Shooed 2 | . . 1 . . . 1 Parts Field Recycled . | . . . . . . . Retrieved Matter . | . . . . . . . Parts Self-Destructed 27 | . . . . 2 25 . Prevented 3 | . . . . . 3 . Kills | -11 -10 -9 -9 -7 -6 -6 ------- Run | Yrd Mat Mat Min Zio Pro Fac Combat Hostiles Destroyed 50 | . 1 16 4 . 4 25 Melee 2 | . . . . . . 2 Guns 15 | . 1 8 . . . 6 Cannons 25 | . . 7 4 . 2 12 AOE 5 | . . 1 . . 1 3 Classes Destroyed 17 | 1 2 7 . . 3 4 Worker 1 | . . . . . . 1 Builder 1 | . 1 . . . . . Tunneler 4 | 2 . 1 . . . 1 Hauler 3 | . . 3 . . . . Recycler 3 | . . 3 . . . . Operator 1 | . . 1 . . . . Drone 1 | . . . . . 1 . Watcher 4 | . . 3 . . . 1 Swarmer 15 | . . 3 4 . . 8 Saboteur 1 | . . . . . . 1 Grunt 19 | . 1 10 . . . 8 Brawler 5 | . . 1 . . 1 3 Protector 1 | . . . . . 1 . Sentry 3 | . . 2 . . . 1 Hunter 2 | . . . . . . 2 Programmer 2 | . . . . . . 2 Behemoth 1 | . . . . . 1 . Best Kill Streak 8 | 1 2 8 4 . 1 7 Combat Bots Only 6 | . 1 6 4 . 1 6 Max Kills in Single Turn 2 | 1 1 2 1 . 1 2 Gunslinging 1 | . . 1 . . . . Exploded 2 | . . 1 . . 1 2 Melee 1 | . . . . . . 1 Uniques/NPCs Destroyed . | . . . . . . . Combat | -11 -10 -9 -9 -7 -6 -6 -------- Run | Yrd Mat Mat Min Zio Pro Fac Hostile Shots Fired 462 | . 5 72 15 . 59 311 Missed 130 | . 3 19 5 . 13 90 Hits 332 | . 2 53 10 . 46 221 Melee 9 | . . 1 . . . 8 Projectile 323 | . 2 52 10 . 46 213 Critical Strikes 14 | . . 1 1 . 3 9 Damage Taken 5577 | . 22 559 85 . 882 4029 Core 1159 | . . 98 . . 204 857 Absorbed by Shields . | . . . . . . . Core Remaining (%) 74 | 100 100 . . . 24 . Volleys Fired 189 | 5 5 53 9 . 25 92 Largest 2 | 2 2 2 2 . 2 2 Hottest 170 | 40 40 136 136 . 136 170 Shots Fired 347 | 10 10 104 14 . 41 168 Gun 134 | 10 10 72 . . . 42 Cannon 206 | . . 31 14 . 39 122 Launcher 7 | . . 1 . . 2 4 Special . | . . . . . . . Kinetic 69 | 10 10 49 . . . . Thermal 248 | . . 31 14 . 39 164 Explosive 7 | . . 1 . . 2 4 Electromagnetic 23 | . . 23 . . . . Robot Hit Streak 11 | 6 8 11 2 . 5 10 Robot Miss Streak 8 | 2 1 5 3 . 8 5 Penetration Max . | . . . . . . . Secondary Targets 2 | . . 2 . . . . Max Gunslinging Chain 1 | . . 1 . . . . Shots Hit Robots 201 | 7 8 54 5 . 18 109 Core Hits 120 | 4 3 36 4 . 14 59 Critical Kills 2 | . . . . . 1 1 Critical Parts Destroyed . | . . . . . . . Critical Strikes 3 | . . . . . 1 2 Burn 1 | . . . . . . 1 Meltdown 2 | . . . . . 1 1 Melee Attacks 15 | . . . . . . 15 Impact . | . . . . . . . Slashing 3 | . . . . . . 3 Piercing 12 | . . . . . . 12 Sneak Attacks . | . . . . . . . Combat Hostiles . | . . . . . . . Follow-up Attacks . | . . . . . . . Damage Inflicted 5086 | 80 73 970 103 . 813 3047 Guns 1125 | 80 73 459 . . . 513 Cannons 2798 | . . 431 103 . 434 1830 Explosions 827 | . . 80 . . 379 368 Melee 336 | . . . . . . 336 Ramming . | . . . . . . . Kinetic 453 | 80 73 300 . . . . Thermal 3363 | . . 483 103 . 434 2343 Explosive 775 | . . 28 . . 379 368 Electromagnetic 159 | . . 159 . . . . Impact . | . . . . . . . Slashing 77 | . . . . . . 77 Piercing 259 | . . . . . . 259 Highest Corruption 13 | . 2 . . . 1 13 Average Corruption 3 | . 2 . . . 1 4 Corruption Purged . | . . . . . . . Corruption Blocked . | . . . . . . . Effects 22 | . . . . . 4 18 Message Errors 6 | . . . . . 2 4 Matter Fused 4 | . . . . . 1 3 Heat Flow Errors 4 | . . . . . . 4 Energy Discharges 1 | . . . . . 1 . Data Loss (minor) 3 | . . . . . . 3 Data Loss (major) 1 | . . . . . . 1 Misfires 1 | . . . . . . 1 Alerts 1 | . . . . . . 1 Weapon Failures 1 | . . . . . . 1 Overload Shots . | . . . . . . . Overflow Damage 23 | . . 3 . . . 20 Projectiles 23 | . . 3 . . . 20 Explosions . | . . . . . . . Melee . | . . . . . . . Knockbacks . | . . . . . . . Impact . | . . . . . . . Kinetic . | . . . . . . . Secondary . | . . . . . . . Self-Inflicted Damage 111 | . . 6 . . . 105 Shots 5 | . . 1 . . . 4 Rammed . | . . . . . . . Targets Rammed . | . . . . . . . Kicked . | . . . . . . . Crushed . | . . . . . . . Highest Temperature 350 | . 6 264 240 . 350 243 Average Temperature 82 | . 6 65 140 . 114 53 Received Heat Transfer 1538 | . 12 186 . . 189 1151 Effects 3 | . . . 1 . 2 . Interference 3 | . . . 1 . 2 . Siege Activations . | . . . . . . . Martial Activations . | . . . . . . . Shielding Activations . | . . . . . . . Robots Disrupted . | . . . . . . . Combat Hostiles . | . . . . . . . Robots Corrupted . | . . . . . . . Combat Hostiles . | . . . . . . . Parts Fried . | . . . . . . . Impact Corruptions . | . . . . . . . Robots Melted 3 | . . . . . 1 2 Combat Hostiles 3 | . . . . . 1 2 Parts Melted 22 | . . 1 . . 8 13 Heat Transferred 5409 | . . 777 185 . 702 3745 Parts Sabotaged 3 | . . . . . . 3 Parts Stolen . | . . . . . . . Parts Stripped . | . . . . . . . Power Chain Reactions 1 | . . 1 . . . . Alert | -11 -10 -9 -9 -7 -6 -6 ------- Run | Yrd Mat Mat Min Zio Pro Fac Maximum Alert Level 3 | . . 1 . . . 3 Low Security (%) 55 | 100 100 98 100 . . . Level 1 4 | . . 1 . . . 10 Level 2 38 | . . . . . . 87 Level 3 . | . . . . . . 2 Level 4 . | . . . . . . . Level 5 . | . . . . . . . High Security . | . . . . . . . Max Security . | . . . . . . . Peak Influence 708 | 5 35 215 90 . . 708 Initial 332 | . . 5 80 . . 332 Average 294 | . 5 132 36 . . 578 Influence Increases 2414 | 10 35 541 90 . 387 1351 Destroy 0b10 Robot/C 1320 | . 20 320 80 . 200 700 Destroy 0b10 Robot/NC 105 | 10 5 55 . . 20 15 Destroy Leader 254 | . 10 72 10 . 30 132 Allied During Kill 226 | . . . . . 122 104 Successful Hack 30 | . . 30 . . . . Disable Machine 60 | . . . . . . 60 Destroy Structure 44 | . . 19 . . . 25 Advance Influence 300 | . . . . . . 300 Lose Combat Pursuer 75 | . . 45 . . 15 15 Influence Decreases 1809 | 10 20 349 297 . 335 798 Entered New Map 157 | . . 10 127 . . 20 Time Decay 1275 | 10 20 309 170 . 288 478 Lost Part 280 | . . 30 . . 20 230 Lost Ally 97 | . . . . . 27 70 Squads Dispatched 14 | . 1 2 . . . 11 Investigation 4 | . 1 1 . . . 2 Extermination 2 | . . . . . . 2 Reinforcement 3 | . . 1 . . . 2 Assault 2 | . . . . . . 2 Garrison 3 | . . . . . . 3 Intercept . | . . . . . . . Searches Triggered . | . . . . . . . Construction Impeded . | . . . . . . . Haulers Reinforced 1 | . . . . . . 1 Active Scanning Responses . | . . . . . . . Cargo Convoy Interrupts . | . . . . . . . Stealth | -11 -10 -9 -9 -7 -6 -6 --------- Run | Yrd Mat Mat Min Zio Pro Fac Distress Signals 6 | . . 5 . . . 1 Communications Jammed . | . . . . . . . Distress Signals . | . . . . . . . Times Spotted 102 | . 3 24 4 1 19 51 Peak Tracking Total 10 | . 2 8 3 1 10 8 Tactical Retreats 4 | . . 2 . . 1 1 Traps | -11 -10 -9 -9 -7 -6 -6 ------- Run | Yrd Mat Mat Min Zio Pro Fac Traps Triggered 5 | . 2 . . . . 3 Indirectly . | . . . . . . . Trap Hack Attempts . | . . . . . . . Triggered . | . . . . . . . Disarmed . | . . . . . . . Reprogrammed . | . . . . . . . Reused . | . . . . . . . Traps Extracted . | . . . . . . . Installed . | . . . . . . . Triggered . | . . . . . . . Machines | -11 -10 -9 -9 -7 -6 -6 ---------- Run | Yrd Mat Mat Min Zio Pro Fac Machines Disabled 5 | . . 1 . . . 4 Max in Single Turn 1 | . . 1 . . . 1 Machines Repaired . | . . . . . . . Machines Dismantled . | . . . . . . . Machines Sabotaged . | . . . . . . . Overloaded Fab Kills . | . . . . . . . Hacking | -11 -10 -9 -9 -7 -6 -6 --------- Run | Yrd Mat Mat Min Zio Pro Fac Machines Accessed 7 | . 1 4 . . . 2 Terminals 5 | . 1 4 . . . . Fabricators 1 | . . . . . . 1 Repair Stations . | . . . . . . . Recycling Units . | . . . . . . . Scanalyzers . | . . . . . . . Garrison Access 1 | . . . . . . 1 Total Hacks 18 | . 2 12 . . . 4 Successful 6 | . 1 5 . . . . Failed 12 | . 1 7 . . . 4 Catastrophic 5 | . 1 1 . . . 3 Database Lockouts . | . . . . . . . Manual 15 | . 2 8 . . . 5 Terminals 14 | . 2 12 . . . . Fabricators 2 | . . . . . . 2 Repair Stations . | . . . . . . . Recycling Units . | . . . . . . . Scanalyzers . | . . . . . . . Garrison Access 2 | . . . . . . 2 Terminal Hacks 3 | . . 3 . . . . Alert Level 1 | . . 1 . . . . Registered Components 1 | . . 1 . . . . Zone Layout 1 | . . 1 . . . . Fabricator Hacks . | . . . . . . . Repair Station Hacks . | . . . . . . . Recycling Unit Hacks . | . . . . . . . Scanalyzer . | . . . . . . . Garrison Access Hacks . | . . . . . . . Unauthorized Hacks 3 | . 1 2 . . . . Terminals 3 | . 1 2 . . . . Botnet 3 | . 1 2 . . . . Fabricators . | . . . . . . . Repair Stations . | . . . . . . . Recycling Units . | . . . . . . . Scanalyzers . | . . . . . . . Garrison Access . | . . . . . . . Data Cores Recovered . | . . . . . . . Used . | . . . . . . . Hacking Detections 7 | . 1 4 . . . 2 Full Trace Events 2 | . . 1 . . . 1 Feedback Events . | . . . . . . . Feedback Blocked . | . . . . . . . Robot Schematics Acquired . | . . . . . . . Robots Built . | . . . . . . . Authchips . | . . . . . . . Time . | . . . . . . . Total Robot Build Rating . | . . . . . . . Part Schematics Acquired . | . . . . . . . Parts Built . | . . . . . . . Authchips . | . . . . . . . Time . | . . . . . . . Total Part Build Rating . | . . . . . . . Parts Repaired . | . . . . . . . Time . | . . . . . . . Parts Recycled . | . . . . . . . Recycled Matter . | . . . . . . . Retrieved Matter . | . . . . . . . Retrieved Components . | . . . . . . . Parts Scanalyzed . | . . . . . . . Part Schematics Acquired . | . . . . . . . Parts Damaged . | . . . . . . . Bothacking | -11 -10 -9 -9 -7 -6 -6 ------------ Run | Yrd Mat Mat Min Zio Pro Fac Used RIF Installer . | . . . . . . . Robots Hacked . | . . . . . . . Non-combat . | . . . . . . . Combat . | . . . . . . . Robot Hacks Applied . | . . . . . . . Relay Couplers Released . | . . . . . . . Fabnet Peak Effective % . | . . . . . . . Robots Rewired . | . . . . . . . Allies Hacked 3 | . . . . . 1 2 Hacks Repelled . | . . . . . . . Allies | -11 -10 -9 -9 -7 -6 -6 -------- Run | Yrd Mat Mat Min Zio Pro Fac Total Allies 11 | . . . . 7 . 4 Largest Group 7 | . . . . 7 7 5 Highest-Rated Group 236 | . . . . 236 236 157 Highest-Rated Ally 40 | . . . . 40 40 37 Zionite Dispatches 2 | . . . . . . 2 Fire 1 | . . . . . . 1 Hacking Resupply 1 | . . . . . . 1 Total Orders 2 | . . . . . . 2 STAY 1 | . . . . . . 1 DROP 1 | . . . . . . 1 Ally Attacks 113 | . . . . . 53 60 Total Damage 2512 | . . . . . 1396 1116 Kills 23 | . . . . . 11 12 Allies Corrupted . | . . . . . . . Allies Melted . | . . . . . . . Intel | -11 -10 -9 -9 -7 -6 -6 ------- Run | Yrd Mat Mat Min Zio Pro Fac Active Infowar (turns) 2792 | 61 237 605 . 26 783 1080 Sensors 2 | . . . . 2 . . Terrain 2329 | . . 442 . 24 783 1080 Seismic 461 | 61 237 163 . . . . Robot Analysis Total . | . . . . . . . Derelict Logs Recovered 3 | . . . 1 . 2 . Drone Launches . | . . . . . . . Drone Recoveries . | . . . . . . . Exploration | -11 -10 -9 -9 -7 -6 -6 ------------- Run | Yrd Mat Mat Min Zio Pro Fac Turns Passed 5331 | 151 237 745 459 1477 1023 1239 Spaces Moved 3092 | 79 138 339 268 1277 626 365 Core 24 | 21 . . . . . 3 Treads 1450 | 58 138 339 268 169 120 358 Legs 4 | . . . . . . 4 Wheels 1614 | . . . . 1108 506 . Hover . | . . . . . . . Flight . | . . . . . . . Fastest Speed 50 | 50 160 160 160 100 100 120 Average Speed 138 | 132 160 160 160 107 129 219 Slowest Speed 550 | 160 160 160 160 160 160 550 Overloaded Moves . | . . . . . . . Propulsion Burnouts . | . . . . . . . Robots Hopped . | . . . . . . . Potential Cave-ins . | . . . . . . . Cave-ins Triggered . | . . . . . . . Exploration Rate (%) 44 | 5 28 32 70 89 71 14 Regions Visited 6 Branch Regions 3 Pre-discovered Areas 1 | . . . . 1 . . Known Exits Taken . | . . . . . . . Unknown Exits Taken 6 | 1 1 1 1 1 1 . Scrap Searched 5 | . . . . 2 3 . Spaces Dug 1 | . . . . . . 1 Terrain Destroyed 56 | . . 15 . . 7 34 Melee . | . . . . . . . Projectile 11 | . . . . . . 11 AOE 45 | . . 15 . . 7 23 Terrain Rammed . | . . . . . . . Walls Destroyed . | . . . . . . . Machines Disabled . | . . . . . . . Actions | -11 -10 -9 -9 -7 -6 -6 --------- Run | Yrd Mat Mat Min Zio Pro Fac Total 3769 | 116 145 443 284 1377 799 605 Wait 286 | 13 2 . 5 74 129 63 Move 3086 | 78 137 338 267 1276 625 365 Hop . | . . . . . . . Pick Up 76 | 13 1 22 1 9 7 23 Fast Attach 3 | 1 . 1 . . . 1 Attach 45 | 6 . 7 . 1 4 27 Detach 4 | . . . . . . 4 Swap 29 | . . 9 1 7 4 8 Drop 35 | . . 13 1 10 4 7 Fire 189 | 5 5 53 9 . 25 92 Melee 15 | . . . . . . 15 Ram . | . . . . . . . Kick . | . . . . . . . Crush . | . . . . . . . Escape Stasis . | . . . . . . . Rewire 1 | . . . . . 1 . Trap . | . . . . . . . Miscellaneous . | . . . . . . . Route ------- -11/Scrapyard -10/Materials -9/Materials -9/Mines (discovered 3 exits: [*Mat x2] / [*Zio]) -7/Zion -6/Proximity Caves -6/Factory History --------- Turn | Location | Event 6 | -11/Scrapyard | Discovered new exit (range 15) 152 | -11/Scrapyard | Entered Materials 305 | -10/Materials | Build established: Mutant 363 | -10/Materials | Discovered new exit (range 5) 389 | -10/Materials | Entered another Materials area 389 | -9/Materials | Evolved 2 slots: Utility x2 1009 | -9/Materials | Discovered new exit (range 10) 1134 | -9/Materials | Entered Mines 1142 | -9/Mines | Met a Derelict bent on vengeance 1192 | -9/Mines | Discovered new exit (range 8) 1334 | -9/Mines | Discovered new exit (range 8) 1390 | -9/Mines | Found a damaged Exp. Sensor Array with a note attached 1395 | -9/Mines | Found Prototype Device 1586 | -9/Mines | A Derelict revealed a hidden shortcut to a safe place 1593 | -9/Mines | Entered Zion 1682 | -7/Zion | Found CR-A16's Pointy Stick 1705 | -7/Zion | Discovered new exit (range 16) 1985 | -7/Zion | Given the Hacking Drone Bay 1987 | -7/Zion | Found Prototype Device 2038 | -7/Zion | Learned location of Storage (-7) 2041 | -7/Zion | Identified Exp. Sensor Array 2671 | -7/Zion | Met Imprinter 2688 | -7/Zion | Imprinted 2690 | -7/Zion | Declared Zion's savior 2900 | -7/Zion | Gained Derelict followers 3070 | -7/Zion | Entered Proximity Caves 3070 | -6/Proximity Caves | Accompanied by 7 allies 3182 | -6/Proximity Caves | Spotted B-75 Beast 3192 | -6/Proximity Caves | Destroyed B-75 Beast 3231 | -6/Proximity Caves | Spotter reported a threat 3272 | -6/Proximity Caves | Learned Factory stockpile data 3318 | -6/Proximity Caves | Learned Factory terminal intel 3489 | -6/Proximity Caves | Spotter reported a threat 3824 | -6/Proximity Caves | Unaware initiated a cargo recovery operation 3837 | -6/Proximity Caves | Core integrity fell below 50% 3880 | -6/Proximity Caves | Discovered new exit (range 16) 3901 | -6/Proximity Caves | Lost 3 allies 4093 | -6/Proximity Caves | Entered Factory 4093 | -6/Factory | Accompanied by 3 allies 4093 | -6/Factory | Evolved 6 slots: Power x1, Propulsion x3, Utility x2 4095 | -6/Factory | Loaded intel: 26 terminal locations 4138 | -6/Factory | Build established: Derelict-Mutant 4244 | -6/Factory | Zion Fire squad teleported in 4264 | -6/Factory | Garrison activated, responded to threat 4646 | -6/Factory | Zion Hacking Resupply teleported in 4773 | -6/Factory | Lost 5 parts (2p1n1u1w) 4793 | -6/Factory | First assault squad dispatched 5197 | -6/Factory | System corruption reached 10% 5221 | -6/Factory | Core integrity fell below 50% 5241 | -6/Factory | Lost 12 parts (1p4n5u2w) 5269 | -6/Factory | Core integrity fell below 20% 5332 | -6/Factory | Destroyed by L-41 Fighter with Axe Last Messages --------------- 05301_ Acquired 38 matter. 05312_ Acquired Carbon-fiber Leg. 05316_ The unstable cave ceiling collapses. 05316_ C-30 ARC bursts open, deploying its payload. 05316_ G-67 Veteran unfolds itself. 05316_ G-50 Soldier unfolds itself. 05316_ L-41 Fighter unfolds itself. 05318_ BMD%YJ3S&XM90CDQPAI#1GF 05330_ Phase Cannon blown off. 05330_ E-15 Imp destroyed. 05331_ Dropped Lrg. Storage Unit. 05331_ Acquired Carbon-fiber Leg. 05331_ U-05 Engineer builds a Wall. 05332_ Carbon-fiber Leg destroyed. Map ----- +----------------------------------------------------+ | ???????????????????????????????????????????? | | ?????????????????????????????????????!?????? | | ???????????????????????????????????????????? | | ???????????????????????????????????????????? | | ???????????????????????????????????????????? | | ???????????????????????????????????????????? | | ???????????????????????????????????????????? | | ???????????????????????????????????????????? | | ???????????????????????????????????????????? | | ???????????????????????????????????????????? | | ???????????????????????????????????????????? | | ?????????????????????????#?????????????????? | | ????????????????????????? ???"""T"""???????? | | ???????????????????????? s ???????????????? | | ???????????????????????""s""???????????????? | | ??????????????????? ? ?? ???????????? | | ?????????????????????""?" "?"?"""""???#????? | | ??????????????? ??? ? ? ?? ??? | | ?????????????? ???? ? ? ? # | | ??????????????#??#####?## ? ? #? # | | ??????????????#??##?#???# ? ? #??#?? | | ??????????????? ???#### ? ?##?##? | | ?????????????"?"" ###### %###########+?##### | | ??????=??????""?"?#####?T!### ] ???#? | | ??????????? ?"""" ### ###!#!# """ """?### | | ??????????????""? #?## #]@!/! """ """ ### | | ??????????? """" #### %l!!# """ """ ?## | | ??????????????????##### #! ##? | | ???????????? ??? ### [% #+####+######?# | | ????????????? ? ### !% /% ] ###### | | ?????????? +u% %! ###### | | ? ??????? ### ^ " #?# | | ? ? ?????? ? ##### ;# ""### | | ?? ???????####???###### g #; #? | | ? #?????????#?####### #; ## | | ? ????#?##??#??? ;; " #? | | ?????????# #; " ## | | ?? #???#??## ? g g;" "" ## | | ?? ??#?##???#?# ######### ### ## | | ?##?#??##?#?######### ###; #"###### | | #####? ? ###%### ### #? | | #?###"?? ? ###"### ### ## | | ###??"?? ? ### ### ### ?# | | ? ##?##"""? + ### ! ### ## | | ##### """ """ ##### + ! # ## | | #?### """ """ ##### # ]]! ##?### | | ###?# """ """ ##### # ###### | | ########## ##### # ###### | | ######??## """ """ ##### ###############? | | ########## """ """ ###?# ##?####??####??# | +----------------------------------------------------+ Best States ------------- Heat Dissipation 64 Energy Generation 27 Energy Capacity 480 Matter Stores 300 Matter Capacity 300 Sight Range 16 Terrain Scan Range 20 Terrain Scan Density 135 Armor Coverage 300 Evasion (%) 50 Recoil Reduction 5 Salvage Targeting 4 Offensive Hacking 10 Item Schematics ----------------- None Robot Schematics ------------------ None Fabricated ------------ Nothing Repaired ---------- Nothing Alien Tech Used ----------------- None Achievements -------------- None Challenges ------------ None Game ------ Seed ThrowingGrenadeCanceller Manual? 0 Play Time 00:42:53 Cumulative 133.7 hours Start 2025.08.12 @ 12:09:58 End 2025.08.12 @ 12:52:11 Sessions 1 Manual Loads 0 Difficulty Rogue Special Mode None Game No. 231 Rogue 231 Adventurer 0 Explorer 0 Win Type - Total 2 Types 1/0/1/0/0/0/0/0/0/0 Lore% 73 Gallery% 69 Achievement% 49 Wizard Run 0 Options --------- Layout 1 ASCII 0 Keyboard 0 Movement Mouse Keybinds 0 Fullscreen 1 Font 24/Smallcaps Map View 50x40 Zoom Use 0% Tactical HUD 1 Map Filters NONE Filters NONE Steam 1 RUN: 7d997394-ad48-43a8-8b31-7ac1ca290539